bitfinex-derivatives/quotes_ETHF0:USTF0_20251001
["timestamp","ask_amount","ask_price","bid_price","bid_amount"]
[1759292280574,0.4407,4147.0,4146.9,2.70884181]
[1759292280575,0.2283,4147.0,4146.9,2.70884181]
[1759292280783,0.55875521,4147.2,4147.1,1.18402]
[1759292281079,0.55875521,4147.2,4147.1,1.84021102]
[1759292281282,0.55875521,4147.2,4147.1,2.48895956]
[1759292281582,0.00205521,4147.2,4147.1,2.48895956]
[1759292281768,0.3284,4147.7,4147.6,0.43387]
[1759292281971,0.2283,4148.0,4147.9,0.4215]
[1759292282175,0.5567,4148.0,4147.9,2.70874181]
[1759292282874,0.5567,4148.0,4147.9,2.71184069]
[1759292282875,0.55862539,4148.0,4147.9,2.71184069]
[1759292283472,0.00192539,4148.0,4147.9,2.71184069]
[1759292283673,0.00192539,4148.0,4147.9,3.36061209]
[1759292284378,0.00192539,4148.0,4147.9,2.71184069]
[1759292284681,0.00192539,4148.0,4147.9,3.60461209]
[1759292285091,0.3284,4148.6,4148.5,0.43378]
[1759292285272,0.5567,4148.6,4148.5,2.05249079]
[1759292285468,0.5567,4148.9,4148.8,1.18383]
[1759292285686,0.5567,4148.9,4148.8,2.05244079]
[1759292285893,0.7691,4148.9,4148.8,2.05244079]
[1759292286275,0.77221926,4148.9,4148.8,2.05244079]
[1759292287281,0.55981926,4148.9,4148.8,2.05244079]
[1759292287783,0.55981926,4148.9,4148.8,2.70602228]
[1759292288378,0.00311926,4148.9,4148.8,2.70602228]
[1759292289782,0.00311926,4148.9,4148.8,2.05244079]
[1759292290176,0.3284,4149.6,4149.5,0.43367]
[1759292290381,0.5567,4149.6,4149.5,0.85517]
[1759292290674,0.5567,4149.6,4149.5,2.05238079]
[1759292290882,0.7691,4149.6,4149.5,2.05238079]
[1759292291282,0.7691,4149.4,4149.3,0.243]
[1759292291578,0.3284,4149.3,4149.2,0.4337]
[1759292291780,0.7691,4149.3,4149.2,0.6425]
[1759292291981,0.7691,4149.3,4149.2,1.1838]
[1759292292578,0.1369,4149.5,4149.1,0.86861079]
[1759292292579,0.3284,4149.5,4149.4,1.18378]
[1759292292783,0.3284,4149.5,4149.4,2.05239079]
[1759292293285,0.5567,4149.5,4149.4,2.05239079]
[1759292293986,0.906,4149.5,4149.4,2.05239079]
[1759292296386,0.7691,4149.5,4149.4,2.05239079]
[1759292300777,0.00226245,4149.6,4149.4,2.05239079]
[1759292300977,0.00226245,4149.6,4149.5,0.8865]
[1759292301489,0.33286245,4149.6,4149.5,0.8865]
[1759292301789,0.77656245,4149.6,4149.5,1.62411079]
[1759292303090,1.21022245,4149.6,4149.5,2.05778079]
[1759292303782,1.21022245,4149.6,4149.5,1.62411079]
[1759292303983,1.21022245,4149.6,4149.5,0.2196]
[1759292304184,1.21022245,4149.6,4148.4,1.7332314]
[1759292304185,0.2116,4149.0,4148.4,1.7332314]
[1759292304391,0.9031,4149.0,4148.9,2.04934079]
[1759292304898,0.542,4149.0,4148.9,2.04934079]
[1759292305391,0.3304,4149.0,4148.9,2.04934079]
[1759292305987,0.9031,4149.5,4149.4,1.18068]
[1759292306188,0.7671,4149.5,4149.4,2.04929079]
[1759292306387,0.00226245,4149.6,4149.5,1.30527]
[1759292307086,0.00226245,4149.6,4149.5,2.17388079]
[1759292307683,0.00226245,4149.6,4149.5,2.82723086]
[1759292308293,0.00226245,4149.6,4149.5,3.69284498]
[1759292309187,0.542,4150.5,4150.4,1.18058]
[1759292309390,37.4,4150.7,4150.5,0.43356]
[1759292309586,0.542,4150.9,4150.8,0.747]
[1759292309792,0.542,4150.9,4150.8,1.61561079]
[1759292310194,0.54456575,4150.9,4150.8,1.61561079]
[1759292310398,0.76966575,4150.9,4150.8,0.4239]
[1759292310590,0.76966575,4150.9,4150.8,1.29251079]
[1759292310993,0.76966575,4150.9,4150.8,1.61561079]
[1759292311188,0.76966575,4150.9,4150.8,0.747]
[1759292311499,0.76966575,4150.9,4150.8,1.08151079]
[1759292311695,0.33296575,4150.9,4150.8,1.61561079]
[1759292311898,0.33296575,4150.9,4150.8,2.26973048]
[1759292312293,0.54456575,4150.9,4150.8,2.26973048]
[1759292313496,0.76966575,4150.9,4150.8,2.26973048]
[1759292313899,0.76966575,4150.9,4150.8,1.94663048]
[1759292315301,0.76966575,4150.9,4150.8,2.26973048]
[1759292315595,0.76966575,4150.9,4150.8,1.94663048]
[1759292315801,0.76966575,4150.9,4150.8,0.65411969]
[1759292315996,0.7671,4150.3,4150.2,0.64649]
[1759292316295,0.7671,4150.3,4150.2,1.83530501]
[1759292316495,0.136,4150.5,4150.2,1.40171501]
[1759292316702,0.3304,4150.5,4150.4,1.61561079]
[1759292316900,0.3304,4150.5,4150.4,2.2703258]
[1759292317103,0.9031,4150.5,4150.4,2.2703258]
[1759292317406,0.9031,4150.5,4150.4,1.9472258]
[1759292317807,0.9031,4150.5,4150.4,1.5233258]
[1759292318008,0.9031,4150.5,4150.4,1.7362258]
[1759292318722,0.9031,4150.5,4150.4,2.2703258]
[1759292319622,0.9031,4150.5,4150.4,1.40171501]
[1759292319923,0.9031,4150.5,4150.4,0.4239]
[1759292320119,0.9031,4150.5,4150.4,0.2129]
[1759292322118,0.43358,4150.4,4150.3,1.30220079]
[1759292322312,1.20068,4150.4,4150.3,0.65472959]
[1759292322517,0.7671,4149.8,4149.7,1.40461079]
[1759292322715,0.7671,4149.8,4149.7,2.70416011]
[1759292323317,0.542,4149.8,4149.7,2.70416011]
[1759292323516,0.2116,4150.0,4149.9,0.747]
[1759292323716,0.4546,4150.4,4149.9,0.65489932]
[1759292323915,0.6797,4150.4,4150.3,1.61561079]
[1759292324217,0.7671,4150.8,4150.7,1.18054]
[1759292324421,0.542,4150.8,4150.7,2.04915079]
[1759292324815,0.7671,4150.8,4150.7,2.04915079]
[1759292325417,0.7671,4150.8,4150.7,2.04916079]
[1759292325622,0.7671,4150.8,4150.7,1.08151079]
[1759292326018,0.7671,4150.8,4150.7,1.40461079]
[1759292327120,0.7671,4150.8,4150.7,1.08151079]
[1759292327822,0.7671,4150.8,4150.7,1.40461079]
[1759292328023,0.7671,4150.8,4150.7,1.61561079]
[1759292328930,0.7671,4150.8,4150.1,1.08401]
[1759292328931,0.542,4150.0,4149.9,1.39362041]
[1759292329114,0.9031,4150.5,4150.4,1.18058]
[1759292329319,0.542,4150.5,4150.4,2.70421657]
[1759292329624,0.542,4150.5,4150.4,2.04919079]
[1759292329823,0.542,4150.5,4150.4,2.70420988]
[1759292331326,0.542,4150.7,4150.6,1.18056]
[1759292331631,0.7671,4150.7,4150.6,1.83557909]
[1759292332029,0.7671,4150.7,4150.6,1.51247909]
[1759292332523,0.7671,4150.7,4150.6,1.83557909]
[1759292333117,0.542,4150.7,4150.6,1.83557909]
[1759292333322,0.7686,4150.7,4150.6,1.83557909]
[1759292333832,0.24556575,4150.9,4150.8,0.87824]
[1759292333833,0.56836575,4150.9,4150.8,0.87824]
[1759292334029,0.81136575,4150.9,4150.8,2.06485079]
[1759292334623,1.24489575,4150.9,4150.8,2.06485079]
[1759292335224,1.24489575,4150.9,4150.8,2.72088306]
[1759292335723,1.47149575,4150.9,4150.8,2.72088306]
[1759292339420,1.47149575,4150.9,4150.8,2.28734306]
[1759292339624,1.47149575,4150.9,4150.8,0.88223227]
[1759292340122,1.03796575,4150.9,4150.8,1.31577227]
[1759292340332,0.56836575,4150.9,4150.8,2.72088306]
[1759292340534,1.00189575,4150.9,4150.8,2.72088306]
[1759292340733,1.22849575,4150.9,4150.8,0.88223227]
[1759292341530,1.22849575,4150.9,4150.8,0.65603227]
[1759292342837,1.47149575,4150.9,4150.8,0.65603227]
[1759292343939,1.03796575,4150.9,4150.8,1.63377227]
[1759292344133,1.47149575,4150.9,4150.8,1.63377227]
[1759292344342,0.00256575,4150.9,4150.8,2.85585764]
[1759292345437,0.00256575,4150.9,4150.8,3.74547805]
[1759292345640,0.00256575,4150.9,4150.8,3.09885764]
[1759292346534,0.34686575,4150.9,4150.8,3.09885764]
[1759292347138,0.00256575,4150.9,4150.8,3.09885764]
[1759292347338,0.00256575,4150.9,4150.8,3.74745883]
[1759292347537,0.56836575,4150.9,4150.8,2.85585764]
[1759292347732,0.00256575,4150.9,4150.8,3.50439362]
[1759292347937,0.00256575,4150.9,4150.8,2.85585764]
[1759292348340,0.56836575,4150.9,4150.8,3.50428445]
[1759292349146,0.56836575,4150.9,4150.8,2.50069908]
[1759292349644,0.00256575,4150.9,4150.8,2.50069908]
[1759292352341,0.56836575,4150.9,4150.8,2.50069908]
[1759292353641,0.00256575,4150.9,4150.8,2.50069908]
[1759292354040,0.00256575,4150.9,4150.8,6.85227227]
[1759292354239,0.7924,4151.8,4151.7,0.2262]
[1759292354444,1.22583,4151.8,4151.7,0.2262]
[1759292354745,0.43345,4151.6,4151.5,0.75146]
[1759292354948,1.22585,4151.6,4151.5,1.85345079]
[1759292355147,1.22847457,4151.6,4151.5,1.85615633]
[1759292355943,0.00262457,4151.6,4151.5,1.98615633]
[1759292356151,0.00262457,4151.6,4151.5,2.22915633]
[1759292357549,2.48026713,4153.3,4152.8,0.7627]
[1759292357749,0.022,4152.9,4152.8,1.66184753]
[1759292357947,1.24772,4152.9,4152.8,1.74779198]
[1759292358146,0.43334,4152.7,4152.6,0.2262]
[1759292358352,0.88144,4152.7,4152.6,0.2262]
[1759292358555,0.88368575,4152.7,4152.6,0.2262]
[1759292358851,1.22798575,4152.7,4152.6,0.2262]
[1759292359155,1.22578,4152.3,4152.2,0.7627]
[1759292359460,1.22578,4152.3,4152.2,1.42148776]
[1759292359853,1.22578,4152.3,4152.2,0.7627]
[1759292360050,0.43338,4152.3,4152.2,1.76628537]
[1759292360351,0.99918,4152.3,4152.2,1.76628537]
[1759292360554,1.22578,4152.3,4152.2,1.76628537]
[1759292362449,1.22578,4152.3,4152.2,0.7627]
[1759292362753,1.22578,4152.3,4152.2,0.4447]
[1759292362952,0.1357,4152.5,4151.9,0.5457]
[1759292362953,1.00821,4152.0,4151.9,0.5457]
[1759292363148,1.32351,4152.0,4151.9,0.7642]
[1759292363358,1.32351,4152.0,4151.9,0.2217]
[1759292363549,1.19154,4151.7,4151.6,0.225]
[1759292363746,0.43344,4151.7,4151.6,0.4435]
[1759292363949,0.43342,4152.0,4151.7,0.77453]
[1759292364150,0.3153,4152.4,4151.9,0.4435]
[1759292364356,1.22277,4152.4,4152.3,0.7846]
[1759292364549,38.62277,4152.4,4152.3,0.7846]
[1759292364742,38.83747,4152.4,4152.3,0.7846]
[1759292364947,38.83747,4152.4,4152.3,0.225]
[1759292365855,38.83747,4152.4,4151.7,0.43344]
[1759292365856,0.43343,4151.8,4151.7,0.3411]
[1759292366049,1.19153,4151.8,4151.7,0.5661]
[1759292366251,1.19153,4151.8,4151.7,0.7846]
[1759292366553,1.19155,4151.6,4151.5,0.00270554]
[1759292366755,1.43755,4151.6,4151.5,0.00270554]
[1759292367459,38.83755,4151.6,4151.5,0.00270554]
[1759292368652,38.59155,4151.6,4151.5,0.00270554]
[1759292368860,38.83755,4151.6,4151.5,0.22770554]
[1759292369453,38.83755,4151.6,4151.5,0.00270554]
[1759292370553,43.83755,4151.6,4151.5,0.00270554]
[1759292370960,43.59155,4151.6,4151.5,0.00270554]
[1759292371166,43.83755,4151.6,4151.5,0.00270554]
[1759292372860,43.83755,4151.6,4151.5,1.79089091]
[1759292372861,38.1581,4151.6,4151.5,1.79089091]
[1759292373062,0.97681,4152.0,4151.9,0.7846]
[1759292373261,1.22381,4152.0,4151.9,0.7846]
[1759292373464,38.62381,4152.0,4151.9,0.7846]
[1759292374060,37.8751,4152.0,4151.9,0.7846]
[1759292374259,37.6281,4152.0,4151.9,0.7846]
[1759292374656,37.9434,4152.0,4151.9,0.7846]
[1759292375258,37.4,4152.0,4151.9,0.7846]
[1759292375563,37.4,4152.0,4151.9,1.44180991]
[1759292375964,37.9434,4152.0,4151.9,1.44180991]
[1759292377460,38.1581,4152.0,4151.9,1.44180991]
[1759292377663,38.2911,4152.0,4151.9,1.10070991]
[1759292377861,38.2911,4152.0,4151.9,0.65720991]
[1759292378166,0.7581,4151.6,4151.5,1.22076554]
[1759292378362,0.5434,4151.6,4151.5,2.88157618]
[1759292378566,0.7904,4151.9,4151.8,1.21803]
[1759292378868,1.0051,4151.9,4151.8,1.87525527]
[1759292379065,0.7581,4151.9,4151.8,1.44182527]
[1759292379267,1.0051,4151.9,4151.8,1.44182527]
[1759292380263,0.7581,4151.9,4151.8,1.44182527]
[1759292380454,1.0051,4151.9,4151.8,1.44182527]
[1759292380855,0.7581,4151.9,4151.8,1.44182527]
[1759292381066,1.0051,4151.9,4151.8,1.44182527]
[1759292383264,1.0051,4151.9,4151.8,1.87525527]
[1759292384152,0.7581,4151.9,4151.8,1.87525527]
[1759292384355,0.5434,4151.9,4151.8,1.87525527]
[1759292384557,37.646,4152.0,4151.9,1.21802]
[1759292384764,37.9613,4152.0,4151.9,1.87524527]
[1759292384958,38.1894,4152.0,4151.9,1.87524527]
[1759292386470,37.4,4152.0,4151.9,1.87524527]
[1759292386867,37.4,4152.0,4151.9,2.52218972]
[1759292387160,37.9434,4152.0,4151.9,2.52218972]
[1759292387367,38.1581,4152.0,4151.9,2.52218972]
[1759292387557,38.1581,4152.0,4151.9,1.87524527]
[1759292387753,38.2911,4152.0,4151.9,1.44182527]
[1759292387960,38.72451,4152.0,4151.9,1.09064527]
[1759292388159,38.2911,4152.0,4151.9,1.09064527]
[1759292388359,38.2911,4152.0,4151.9,1.96258972]
[1759292388561,38.5371,4152.0,4151.9,1.31564527]
[1759292389477,38.97051,4152.0,4151.9,1.31564527]
[1759292389768,38.5371,4152.0,4151.9,1.31564527]
[1759292389969,38.5371,4152.0,4151.9,1.09064527]
[1759292390671,38.5371,4152.0,4151.9,1.31564527]
[1759292390865,38.2911,4152.0,4151.9,1.31564527]
[1759292391062,38.2911,4152.0,4151.9,1.87524527]
[1759292391263,38.2911,4152.0,4151.9,1.31564527]
[1759292392669,38.72451,4152.0,4151.9,0.65722527]
[1759292393966,38.72451,4152.0,4151.9,1.09064527]
[1759292395175,38.2911,4152.0,4151.9,1.09064527]
[1759292395670,38.5371,4152.0,4151.9,1.09064527]
[1759292396379,37.9434,4152.0,4151.9,1.83754527]
[1759292396579,38.2888,4152.0,4151.9,1.83754527]
[1759292397875,37.9434,4152.0,4151.9,1.83754527]
[1759292398081,37.9434,4152.0,4151.9,2.48448972]
[1759292398283,38.1592,4152.0,4151.9,2.48448972]
[1759292398478,38.2888,4152.0,4151.9,2.48448972]
[1759292398779,0.8888,4152.0,4151.9,2.48448972]
[1759292399179,38.2888,4152.0,4151.9,2.48448972]
[1759292400281,38.2888,4152.0,4151.9,1.51664527]
[1759292400681,38.2888,4152.0,4151.9,1.83754527]
[1759292401482,38.1592,4152.0,4151.9,2.70168488]
[1759292401780,0.7592,4152.0,4151.9,2.70168488]
[1759292402182,0.7592,4152.0,4151.9,1.83754527]
[1759292402384,37.4,4152.4,4152.3,0.43338]
[1759292402581,38.1417,4152.4,4152.3,1.83750527]
[1759292402775,38.1417,4152.4,4152.3,1.51660527]
[1759292404280,38.1417,4152.4,4152.3,2.38301378]
[1759292406278,38.1417,4152.4,4152.3,2.16641378]
[1759292407185,38.1417,4152.4,4152.3,1.30000527]
[1759292407377,38.1417,4152.4,4152.3,1.95701378]
[1759292407578,38.1417,4152.4,4152.3,2.60538077]
[1759292409093,38.3867,4152.4,4152.3,2.60538077]
[1759292409386,38.3867,4152.4,4152.3,1.73897226]
[1759292409387,38.82007,4152.4,4152.3,1.73897226]
[1759292409890,38.82007,4152.4,4152.3,1.09060527]
[1759292410089,38.3867,4152.4,4152.3,1.09060527]
[1759292411995,38.3867,4152.4,4152.3,1.95701378]
[1759292415192,38.3867,4152.4,4152.3,1.09060527]
[1759292415392,38.1417,4152.4,4152.3,1.09060527]
[1759292415689,38.3867,4152.4,4152.3,1.95701378]
[1759292415893,38.82007,4152.4,4152.3,1.95701378]
[1759292416091,38.3867,4152.4,4152.3,1.95701378]
[1759292416793,38.82007,4152.4,4152.3,1.95701378]
[1759292417189,0.9867,4152.4,4152.3,1.95701378]
[1759292418494,0.7417,4152.4,4152.3,1.95701378]
[1759292419095,38.1417,4152.4,4152.3,1.95701378]
[1759292419894,38.1417,4152.4,4152.3,2.60538077]
[1759292420093,38.57507,4152.4,4152.3,2.60538077]
[1759292420289,38.57507,4152.4,4152.3,1.73897226]
[1759292420595,38.57507,4152.4,4152.3,2.60538077]
[1759292420892,38.1417,4152.4,4152.3,2.60538077]
[1759292422487,38.57507,4152.4,4152.3,1.73897226]
[1759292422792,38.57507,4152.4,4152.3,2.60538077]
[1759292423391,38.57507,4152.4,4152.3,1.73897226]
[1759292423587,38.57507,4152.4,4152.3,1.30559226]
[1759292423792,38.57507,4152.4,4152.3,0.65722527]
[1759292425095,0.43344,4151.8,4151.7,1.08181699]
[1759292425395,1.29654,4151.8,4151.7,0.43345]
[1759292425590,0.8631,4151.8,4151.7,0.43345]
[1759292425987,38.2631,4151.8,4151.7,0.43345]
[1759292426393,38.2631,4151.8,4151.7,1.29985851]
[1759292426993,38.69654,4151.8,4151.7,1.29985851]
[1759292427595,1.05156,4151.6,4151.5,0.43617554]
[1759292427796,1.29656,4151.6,4151.5,1.30258405]
[1759292428294,1.29656,4151.6,4151.5,1.63788405]
[1759292429788,1.29656,4151.6,4151.5,1.30258405]
[1759292430495,1.29656,4151.6,4151.5,0.00270554]
[1759292431596,6.29656,4151.6,4151.5,0.00270554]
[1759292432200,43.69656,4151.6,4151.5,0.00270554]
[1759292435194,0.85566,4150.6,4150.5,0.3643]
[1759292435404,1.04896,4150.6,4150.5,1.23070851]
[1759292435596,0.85566,4150.6,4150.5,1.66427851]
[1759292435897,0.4221,4150.6,4150.5,2.21787851]
[1759292436096,37.8221,4150.6,4150.5,2.21787851]
[1759292436298,37.8221,4150.6,4150.5,2.22000045]
[1759292436699,38.25566,4150.6,4150.5,2.22000045]
[1759292438204,37.8221,4150.6,4150.5,2.22000045]
[1759292438401,0.2128,4151.5,4150.6,1.08391]
[1759292438695,0.2128,4151.5,4151.4,0.5624]
[1759292438696,1.04887,4151.5,4151.4,0.5624]
[1759292438902,1.04887,4151.5,4151.0,0.131]
[1759292438903,1.04891,4151.1,4151.0,0.6934]
[1759292439099,0.2128,4151.1,4151.0,1.34522]
[1759292439294,0.6785,4151.2,4151.1,0.66061]
[1759292439603,37.9785,4151.2,4151.1,2.08061851]
[1759292439999,38.1913,4151.2,4151.1,1.64710851]
[1759292440202,37.9463,4151.2,4151.1,1.64710851]
[1759292440700,38.1556,4151.2,4151.1,1.64710851]
[1759292441706,38.3489,4151.2,4151.1,1.64710851]
[1759292441904,38.3489,4151.2,4151.1,1.42880851]
[1759292442105,38.3489,4151.2,4151.1,1.86231851]
[1759292442306,38.3489,4151.2,4151.1,1.20170851]
[1759292442500,37.3,4151.2,4151.1,1.64710851]
[1759292442700,37.7221,4151.2,4151.1,1.64710851]
[1759292442902,37.9154,4151.2,4151.1,1.20170851]
[1759292443709,37.9154,4151.2,4151.1,0.3353]
[1759292444410,37.9154,4151.2,4151.1,0.5624]
[1759292444610,37.7221,4151.2,4151.1,0.7807]
[1759292444811,37.9661,4151.2,4151.1,1.64710851]
[1759292445510,0.4026,4150.8,4150.7,0.76885]
[1759292445710,0.8594,4150.8,4150.7,1.42194203]
[1759292446009,0.8594,4150.8,4150.7,1.64904203]
[1759292446205,0.6661,4150.8,4150.7,1.86734203]
[1759292447002,1.09964,4150.8,4150.7,1.86734203]
[1759292447903,0.244,4150.8,4150.7,1.86734203]
[1759292448103,37.7335,4151.2,4151.1,0.43351]
[1759292448299,38.3996,4151.2,4151.1,1.64710851]
[1759292448512,38.5929,4151.2,4151.1,1.64710851]
[1759292450212,38.5929,4151.2,4151.1,0.3353]
[1759292450413,38.5929,4151.2,4150.6,0.64836699]
[1759292450414,0.1933,4151.0,4150.6,0.64836699]
[1759292450615,1.04896,4150.6,4150.5,0.00212194]
[1759292450823,1.29296,4150.6,4150.5,0.65585897]
[1759292451016,1.29296,4150.6,4150.5,0.99115897]
[1759292451320,1.29296,4150.6,4150.5,1.12215897]
[1759292451617,1.29296,4150.6,4150.5,0.46842194]
[1759292452516,38.59296,4150.6,4150.5,0.46842194]
[1759292453318,39.45936851,4150.6,4150.5,0.00212194]
[1759292456214,38.59296,4150.6,4150.5,0.31532194]
[1759292456821,38.39966,4150.6,4150.5,0.67312194]
[1759292457326,38.59276,4150.6,4150.5,0.44692194]
[1759292458321,38.59276,4150.6,4150.5,0.00212194]
[1759292459928,38.59276,4150.6,4150.5,0.44692194]
[1759292460431,38.59276,4150.6,4150.5,0.67312194]
[1759292460828,38.59276,4150.6,4150.5,0.31532194]
[1759292461329,38.15566,4150.6,4150.5,0.67312194]
[1759292461530,38.39966,4150.6,4150.5,0.88682194]
[1759292462325,38.39966,4150.6,4150.5,0.44692194]
[1759292462525,38.59276,4150.6,4150.5,0.44692194]
[1759292462826,38.59276,4150.6,4150.5,7.40813935]
[1759292462827,37.3,4150.6,4150.5,7.40813935]
[1759292465825,0.43349,4151.3,4150.5,7.40813935]
[1759292465826,0.64119,4151.3,4151.2,0.7531]
[1759292466025,0.88519,4151.3,4151.2,2.27441741]
[1759292466229,38.40479,4151.3,4151.2,1.4080089]
[1759292467529,38.40479,4151.3,4151.2,0.6549089]
[1759292467530,38.59789,4151.3,4151.2,0.6549089]
[1759292467832,0.6204,4150.6,4150.5,0.00212194]
[1759292468138,0.8644,4150.6,4150.5,0.00212194]
[1759292468834,38.1644,4150.6,4150.5,0.00212194]
[1759292470142,0.4273,4149.9,4149.7,0.3132]
[1759292470436,1.05407,4149.6,4149.5,0.3132]
[1759292470636,1.29807,4149.6,4149.5,0.3132]
[1759292470835,1.29807,4149.6,4149.5,0.4448]
[1759292471032,0.83449,4149.4,4149.3,0.64856059]
[1759292471238,1.10809611,4149.4,4149.3,0.228614]
[1759292471638,1.10809611,4149.4,4149.3,0.541814]
[1759292474428,1.30119611,4149.4,4149.3,0.541814]
[1759292474632,1.30119611,4149.4,4149.3,0.315614]
[1759292476140,1.30119611,4149.4,4149.3,0.755514]
[1759292476141,0.00310611,4149.4,4149.3,0.755514]
[1759292476442,0.00310611,4149.4,4149.3,7.62340405]
[1759292476633,0.06,4151.5,4149.3,7.62340405]
[1759292476634,0.2077,4150.6,4150.5,0.8847]
[1759292476839,0.88525,4150.8,4150.7,0.4399]
[1759292477142,1.05396,4150.6,4150.5,0.3132]
[1759292477343,0.6713,4150.6,4150.5,0.671]
[1759292477541,0.67415327,4150.6,4150.5,0.8847]
[1759292478436,0.67415327,4150.6,4150.5,0.3132]
[1759292478437,0.86725327,4150.6,4150.5,0.3132]
[1759292478738,0.87361,4150.1,4150.0,1.54431565]
[1759292478932,0.44,4150.1,4150.0,0.8965]
[1759292479640,0.44,4150.1,4150.0,1.55194152]
[1759292480231,0.8771,4150.1,4150.0,1.55194152]
[1759292480435,0.8771,4150.1,4150.0,1.11954152]
[1759292480844,0.8771,4150.1,4150.0,0.65544152]
[1759292481044,0.6331,4149.7,4149.6,0.3325]
[1759292481342,37.9331,4149.7,4149.6,1.20867315]
[1759292481641,38.36676,4149.7,4149.6,1.20867315]
[1759292481836,38.61176,4149.7,4149.6,0.65567315]
[1759292482045,1.06679,4149.4,4149.3,0.334914]
[1759292482243,1.06679,4149.4,4149.3,0.99085081]
[1759292482643,1.06679,4149.4,4149.3,1.21135081]
[1759292485249,1.06679,4149.4,4149.3,0.555414]
[1759292485741,1.06679,4149.4,4149.3,0.002414]
[1759292486342,38.36679,4149.4,4149.3,0.002414]
[1759292488449,38.36679,4149.4,4149.3,0.337314]
[1759292488949,38.36679,4149.4,4149.3,0.002414]
[1759292493555,38.36679,4149.4,4149.3,0.337314]
[1759292495152,38.36679,4149.4,4149.3,0.002414]
[1759292495450,39.36993259,4149.4,4149.3,0.002414]
[1759292496249,44.36993259,4149.4,4149.3,0.002414]
[1759292497555,0.65631,4148.3,4148.2,0.763]
[1759292497754,0.90031,4148.3,4148.2,0.763]
[1759292498156,1.12301,4148.3,4148.2,0.543]
[1759292498459,38.42301,4148.3,4148.2,0.76476794]
[1759292501257,38.42301,4148.3,4148.2,1.19857794]
[1759292501666,38.42301,4148.3,4148.2,0.76476794]
[1759292502259,38.42301,4148.3,4148.2,1.19857794]
[1759292502455,38.42301,4148.3,4148.2,0.76476794]
[1759292504661,38.42301,4148.3,4148.2,1.19857794]
[1759292504860,37.3,4148.3,4148.2,1.19857794]
[1759292505051,37.3,4148.3,4148.2,6.19857794]
[1759292506458,37.3,4148.3,4148.2,6.84639359]
[1759292506862,37.3,4148.3,4148.2,6.19857794]
[1759292507061,0.43375,4148.8,4148.7,0.86186]
[1759292507363,0.43375,4148.8,4148.7,1.19676]
[1759292507559,37.73375,4148.8,4148.7,1.19676]
[1759292507761,37.95625,4148.8,4148.7,1.19676]
[1759292509166,37.3,4148.8,4148.7,1.19676]
[1759292510161,37.3,4148.8,4148.7,6.19676]
[1759292511470,37.3,4148.8,4148.7,6.84468181]
[1759292511670,37.95625,4148.8,4148.7,6.84468181]
[1759292512165,38.17895,4148.8,4148.7,6.84468181]
[1759292512869,37.7452,4148.8,4148.7,6.84468181]
[1759292514969,37.3,4148.8,4148.7,6.84468181]
[1759292515468,37.3,4148.8,4148.7,6.19676]
[1759292515767,0.4667,4149.0,4148.9,1.19994]
[1759292515964,0.2227,4149.0,4148.9,1.19994]
[1759292516154,38.18333,4149.0,4148.9,1.19994]
[1759292516359,38.37623,4149.0,4148.9,0.97174]
[1759292516762,38.37623,4149.0,4148.9,0.3124]
[1759292517061,38.62023,4149.0,4148.9,0.74614]
[1759292518165,38.62023,4149.0,4148.9,1.40281589]
[1759292518662,38.62023,4149.0,4148.9,1.09041589]
[1759292519059,38.8926,4149.0,4148.7,0.3051539]
[1759292519261,0.43378,4148.5,4148.4,0.3124]
[1759292519568,0.43378,4148.5,4147.0,4.88675408]
[1759292519569,0.43392,4147.2,4147.1,0.2256]
[1759292519863,38.47576531,4147.2,4147.1,0.4538]
[1759292520255,37.7996208,4147.2,4147.1,0.45567951]
[1759292520469,38.0456208,4147.2,4147.1,0.45567951]
[1759292521265,1.08483,4147.1,4146.5,0.2256]
[1759292521564,0.49684531,4147.0,4146.9,0.4538]
[1759292521775,37.30277549,4147.2,4147.0,0.8908]
[1759292521971,0.74322138,4147.1,4147.0,0.8908]
[1759292522271,0.74322138,4147.1,4147.0,0.89372329]
[1759292524864,0.49722138,4147.1,4147.0,0.89372329]
[1759292525065,0.74322138,4147.1,4147.0,0.89372329]
[1759292525272,0.49722138,4147.1,4147.0,0.89372329]
[1759292525472,0.74322138,4147.1,4147.0,0.89372329]
[1759292525767,0.74322138,4147.1,4146.0,0.1246]
[1759292525768,0.43403,4146.1,4146.0,0.1246]
[1759292525972,0.68003,4146.1,4146.0,0.5784]
[1759292526172,38.37725138,4146.1,4146.0,0.5784]
[1759292526674,37.94422138,4146.1,4146.0,0.58032743]
[1759292527670,37.94422138,4146.1,4146.0,0.89272743]
[1759292531174,37.94522138,4146.1,4146.0,0.89272743]
[1759292532164,37.69722138,4146.1,4146.0,0.89272743]
[1759292532374,37.448,4146.1,4146.0,6.76206613]
[1759292532882,0.00277549,4147.2,4146.1,1.08508]
[1759292533070,0.52093093,4147.1,4147.0,0.8908]
[1759292533379,37.91893093,4147.1,4147.0,0.8908]
[1759292533983,37.398,4147.1,4147.0,0.8908]
[1759292534180,37.72100437,4147.1,4147.0,0.8908]
[1759292534374,37.448,4147.1,4147.0,0.8908]
[1759292534781,37.96937295,4147.1,4147.0,0.8908]
[1759292535679,37.448,4147.1,4147.0,0.8908]
[1759292535873,37.2,4147.1,4147.0,0.8908]
[1759292536181,37.448,4147.1,4147.0,0.8908]
[1759292537077,37.96942478,4147.1,4147.0,0.8908]
[1759292537382,37.72142478,4147.1,4147.0,0.8908]
[1759292537682,37.96942478,4147.1,4147.0,0.8908]
[1759292538279,37.96842478,4147.1,4147.0,0.8908]
[1759292538485,37.447,4147.1,4147.0,0.8908]
[1759292540487,37.96886044,4147.1,4147.0,0.8908]
[1759292542280,38.40279044,4147.1,4147.0,1.32474]
[1759292544390,37.96886044,4147.1,4147.0,1.32474]
[1759292545191,38.40279044,4147.1,4147.0,1.32474]
[1759292546589,37.96886044,4147.1,4147.0,1.32474]
[1759292547496,38.40279044,4147.1,4147.0,1.32474]
[1759292547796,37.96886044,4147.1,4147.0,1.32474]
[1759292551296,0.52186044,4147.1,4147.0,2.1940787]
[1759292551797,0.52186044,4147.1,4147.0,1.32474]